fUSD/lending_fUSD_20260508
["ID","MTS","AMOUNT","RATE_DAILY","PERIOD"]
[421802474,1778175064000,-60000.0,0.00042267,55]
[421802484,1778175064000,-855.0929,0.00042267,120]
[421802481,1778175064000,-855.0929,0.00042267,120]
[421802490,1778175064000,-855.0929,0.00042267,120]
[421802501,1778175064000,-500.0,0.00042267,120]
[421802500,1778175064000,-500.0,0.00042267,120]
[421802494,1778175064000,-855.0929,0.00042267,120]
[421802495,1778175064000,-855.09478656,0.00042267,120]
[421802496,1778175064000,-249.64447243,0.00042267,120]
[421802497,1778175064000,-500.0,0.00042267,120]
[421802499,1778175064000,-500.0,0.00042267,120]
[421802503,1778175064000,-500.0,0.00042267,120]
[421802504,1778175064000,-500.0,0.00042267,120]
[421802502,1778175064000,-500.0,0.00042267,120]
[421802440,1778175064000,-305.10372963,0.00042267,30]
[421802487,1778175064000,-855.0929,0.00042267,120]
[421802473,1778175064000,-60000.0,0.00042267,50]
[421802498,1778175064000,-500.0,0.00042267,120]
[421802475,1778175064000,-4000.0,0.00042267,30]
[421802455,1778175064000,-191.47,0.00042267,30]
[421802444,1778175064000,-165.16886298,0.00042267,30]
[421802447,1778175064000,-516.00521517,0.00042267,30]
[421802446,1778175064000,-313.25421823,0.00042267,45]
[421802448,1778175064000,-153.36532724,0.00042267,30]
[421802453,1778175064000,-1223921.0,0.00042267,30]
[421802451,1778175064000,-156.78568373,0.00042267,30]
[421802449,1778175064000,-302.36976129,0.00042267,30]
[421802476,1778175064000,-855.0929,0.00042267,120]
[421802452,1778175064000,-22006.60975815,0.00042267,30]
[421802454,1778175064000,-263.18628378,0.00042267,31]
[421802456,1778175064000,-10600.83440469,0.00042267,45]
[421802458,1778175064000,-12260.72090294,0.00042267,30]
[421802462,1778175064000,-1036.0,0.00042267,30]
[421802450,1778175064000,-1312.80880979,0.00042267,30]
[421802459,1778175064000,-19896.94506005,0.00042267,30]
[421802468,1778175064000,-50000.0,0.00042267,51]
[421802467,1778175064000,-250.12024063,0.00042267,30]
[421802480,1778175064000,-855.0929,0.00042267,120]
[421802479,1778175064000,-855.0929,0.00042267,120]
[421802469,1778175064000,-56452.4235172,0.00042267,30]
[421802464,1778175064000,-200.14,0.00042267,7]
[421802478,1778175064000,-855.0929,0.00042267,120]
[421802463,1778175064000,-333.32921699,0.00042267,30]
[421802466,1778175064000,-190508.02288247,0.00042267,2]
[421802457,1778175064000,-10103.85167067,0.00042267,2]
[421802461,1778175064000,-255.0,0.00042267,30]
[421802460,1778175064000,-15884.01305974,0.00042267,2]
[421802465,1778175064000,-1033.0,0.00042267,12]
[421802540,1778175065000,-500.0,0.00042267,120]
[421802548,1778175065000,-520.50877298,0.00042267,120]
[421802553,1778175065000,-500.0,0.00042267,120]
[421802545,1778175065000,-500.0,0.00042267,120]
[421802538,1778175065000,-184.47500548,0.00042267,120]
[421802542,1778175065000,-500.0,0.00042267,120]
[421802544,1778175065000,-500.0,0.00042267,120]
[421802535,1778175065000,-512.28352467,0.00042267,120]
[421802539,1778175065000,-500.0,0.00042267,120]
[421802537,1778175065000,-500.0,0.00042267,120]
[421802541,1778175065000,-500.0,0.00042267,120]
[421802555,1778175065000,-500.0,0.00042267,120]
[421802567,1778175065000,-182.87222898,0.00042267,120]
[421802554,1778175065000,-635.47954101,0.00042267,120]
[421802551,1778175065000,-500.0,0.00042267,120]
[421802547,1778175065000,-500.0,0.00042267,120]
[421802550,1778175065000,-513.52737829,0.00042267,120]
[421802556,1778175065000,-500.0,0.00042267,120]
[421802552,1778175065000,-517.65753252,0.00042267,120]
[421802549,1778175065000,-500.0,0.00042267,120]
[421802560,1778175065000,-500.0,0.00042267,120]
[421802557,1778175065000,-594.08084075,0.00042267,120]
[421802561,1778175065000,-500.0,0.00042267,120]
[421802565,1778175065000,-500.0,0.00042267,120]
[421802562,1778175065000,-213.23673561,0.00042267,120]
[421802543,1778175065000,-500.0,0.00042267,120]
[421802546,1778175065000,-389.75256781,0.00042267,120]
[421802534,1778175065000,-220.99192918,0.00042267,120]
[421802522,1778175065000,-1000000.0,0.00042267,30]
[421802536,1778175065000,-500.0,0.00042267,120]
[421802564,1778175065000,-500.0,0.00042267,120]
[421802506,1778175065000,-410.05385811,0.00042267,120]
[421802505,1778175065000,-500.0,0.00042267,120]
[421802508,1778175065000,-901.69571325,0.00042267,30]
[421802507,1778175065000,-252614.95108713,0.00042267,30]
[421802517,1778175065000,-1000000.0,0.00042267,30]
[421802510,1778175065000,-1000000.0,0.00042267,30]
[421802518,1778175065000,-1000000.0,0.00042267,30]
[421802509,1778175065000,-6266.25,0.00042267,120]
[421802511,1778175065000,-1000000.0,0.00042267,30]
[421802512,1778175065000,-1000000.0,0.00042267,30]
[421802513,1778175065000,-1000000.0,0.00042267,30]
[421802514,1778175065000,-1000000.0,0.00042267,30]
[421802532,1778175065000,-500.0,0.00042267,120]
[421802515,1778175065000,-1000000.0,0.00042267,30]
[421802519,1778175065000,-1000000.0,0.00042267,30]
[421802521,1778175065000,-1000000.0,0.00042267,30]
[421802524,1778175065000,-1000000.0,0.00042267,30]
[421802523,1778175065000,-1000000.0,0.00042267,30]
[421802525,1778175065000,-1000000.0,0.00042267,30]
[421802527,1778175065000,-1000000.0,0.00042267,30]
[421802526,1778175065000,-1000000.0,0.00042267,30]
[421802520,1778175065000,-1000000.0,0.00042267,30]
[421802529,1778175065000,-729647.0,0.00042267,30]
[421802528,1778175065000,-1000000.0,0.00042267,30]
[421802530,1778175065000,-6194.5,0.00042267,30]
[421802531,1778175065000,-500.0,0.00042267,120]
[421802533,1778175065000,-500.0,0.00042267,120]
[421802516,1778175065000,-1000000.0,0.00042267,30]
[421802558,1778175065000,-500.0,0.00042267,120]
[421802572,1778175065000,-500.0,0.00042267,120]
[421802563,1778175065000,-500.0,0.00042267,120]
[421802600,1778175065000,-500.0,0.00042267,120]
[421802601,1778175065000,-500.0,0.00042267,120]
[421802603,1778175065000,-511.68914781,0.00042267,120]
[421802605,1778175065000,-315.7703118,0.00042267,120]
[421802602,1778175065000,-500.0,0.00042267,120]
[421802604,1778175065000,-500.0,0.00042267,120]
[421802606,1778175065000,-500.0,0.00042267,120]
[421802613,1778175065000,-585.96111196,0.00042267,120]
[421802616,1778175065000,-500.0,0.00042267,120]
[421802615,1778175065000,-500.0,0.00042267,120]
[421802608,1778175065000,-500.0,0.00042267,120]
[421802617,1778175065000,-513.76095646,0.00042267,120]
[421802609,1778175065000,-500.0,0.00042267,120]
[421802607,1778175065000,-500.0,0.00042267,120]
[421802610,1778175065000,-500.0,0.00042267,120]
[421802612,1778175065000,-500.0,0.00042267,120]
[421802611,1778175065000,-500.0,0.00042267,120]
[421802614,1778175065000,-500.0,0.00042267,120]
[421802618,1778175065000,-500.0,0.00042267,120]
[421802619,1778175065000,-500.0,0.00042267,120]
[421802622,1778175065000,-500.0,0.00042267,120]
[421802621,1778175065000,-500.0,0.00042267,120]
[421802559,1778175065000,-500.0,0.00042267,120]
[421802626,1778175065000,-522.45972104,0.00042267,120]
[421802625,1778175065000,-500.0,0.00042267,120]
[421802623,1778175065000,-500.0,0.00042267,120]
[421802624,1778175065000,-500.0,0.00042267,120]
[421802599,1778175065000,-505.96365968,0.00042267,120]
[421802597,1778175065000,-500.0,0.00042267,120]
[421802620,1778175065000,-500.0,0.00042267,120]
[421802596,1778175065000,-500.0,0.00042267,120]
[421802598,1778175065000,-500.0,0.00042267,120]
[421802566,1778175065000,-500.0,0.00042267,120]
[421802568,1778175065000,-500.0,0.00042267,120]
[421802581,1778175065000,-573.65163586,0.00042267,120]
[421802569,1778175065000,-512.2801101,0.00042267,120]
[421802580,1778175065000,-500.0,0.00042267,120]
[421802571,1778175065000,-500.0,0.00042267,120]
[421802574,1778175065000,-538.62247074,0.00042267,120]
[421802575,1778175065000,-500.0,0.00042267,120]
[421802577,1778175065000,-500.0,0.00042267,120]
[421802576,1778175065000,-500.0,0.00042267,120]
[421802578,1778175065000,-500.0,0.00042267,120]
[421802573,1778175065000,-500.0,0.00042267,120]
[421802579,1778175065000,-500.0,0.00042267,120]
[421802570,1778175065000,-500.0,0.00042267,120]
[421802584,1778175065000,-500.0,0.00042267,120]
[421802582,1778175065000,-408.42124362,0.00042267,120]
[421802594,1778175065000,-176.2302588,0.00042267,120]
[421802590,1778175065000,-500.0,0.00042267,120]
[421802592,1778175065000,-500.0,0.00042267,120]
[421802591,1778175065000,-614.74582285,0.00042267,120]
[421802593,1778175065000,-500.0,0.00042267,120]
[421802595,1778175065000,-500.0,0.00042267,120]
[421802583,1778175065000,-305.46470003,0.00042267,120]
[421802588,1778175065000,-500.0,0.00042267,120]
[421802585,1778175065000,-596.42931948,0.00042267,120]
[421802586,1778175065000,-500.0,0.00042267,120]
[421802589,1778175065000,-499.98428276,0.00042267,120]
[421802587,1778175065000,-500.0,0.00042267,120]
[421802659,1778175066000,-946.4,0.00042267,120]
[421802666,1778175066000,-220.25597329,0.00042267,120]
[421802667,1778175066000,-946.4,0.00042267,120]
[421802665,1778175066000,-500.0,0.00042267,120]
[421802657,1778175066000,-946.4,0.00042267,120]
[421802651,1778175066000,-946.4,0.00042267,120]
[421802647,1778175066000,-229.33332255,0.00042267,120]
[421802655,1778175066000,-946.4,0.00042267,120]
[421802654,1778175066000,-500.0,0.00042267,120]
[421802658,1778175066000,-500.0,0.00042267,120]
[421802668,1778175066000,-500.0,0.00042267,120]
[421802669,1778175066000,-946.4,0.00042267,120]
[421802660,1778175066000,-500.0,0.00042267,120]
[421802661,1778175066000,-946.4,0.00042267,120]
[421802662,1778175066000,-500.0,0.00042267,120]
[421802663,1778175066000,-500.0,0.00042267,120]
[421802670,1778175066000,-494.39620128,0.00042267,120]
[421802671,1778175066000,-946.4,0.00042267,120]
[421802673,1778175066000,-946.4,0.00042267,120]
[421802672,1778175066000,-500.0,0.00042267,120]
[421802674,1778175066000,-511.37525924,0.00042267,120]
[421802648,1778175066000,-159.3112622,0.00042267,120]
[421802664,1778175066000,-946.4,0.00042267,120]
[421802646,1778175066000,-278.58470524,0.00042267,120]
[421802636,1778175066000,-500.0,0.00042267,120]
[421802656,1778175066000,-500.0,0.00042267,120]
[421802675,1778175066000,-946.4,0.00042267,120]
[421802628,1778175066000,-500.0,0.00042267,120]
[421802629,1778175066000,-500.0,0.00042267,120]
[421802627,1778175066000,-500.0,0.00042267,120]
[421802632,1778175066000,-400.28459471,0.00042267,120]
[421802641,1778175066000,-500.0,0.00042267,120]
[421802631,1778175066000,-583.88279456,0.00042267,5]
[421802630,1778175066000,-515.20739172,0.00042267,120]
[421802643,1778175066000,-500.0,0.00042267,120]
[421802642,1778175066000,-500.0,0.00042267,120]
[421802649,1778175066000,-500.0,0.00042267,120]
[421802635,1778175066000,-500.0,0.00042267,120]
[421802639,1778175066000,-500.0,0.00042267,120]
[421802640,1778175066000,-588.61534263,0.00042267,120]
[421802638,1778175066000,-500.0,0.00042267,120]
[421802633,1778175066000,-500.0,0.00042267,120]
[421802637,1778175066000,-500.0,0.00042267,120]
[421802645,1778175066000,-500.0,0.00042267,120]
[421802653,1778175066000,-946.4,0.00042267,120]
[421802644,1778175066000,-500.0,0.00042267,120]
[421802652,1778175066000,-946.4,0.00042267,120]
[421802650,1778175066000,-507.2583937,0.00042267,120]
[421802634,1778175066000,-500.0,0.00042267,120]
[421802679,1778175066000,-946.4,0.00042267,120]
[421802702,1778175066000,-517.16592222,0.00042267,120]
[421802683,1778175066000,-500.0,0.00042267,120]
[421802700,1778175066000,-491.62,0.00042267,120]
[421802727,1778175066000,-513.79430368,0.00042267,120]
[421802706,1778175066000,-500.0,0.00042267,120]
[421802709,1778175066000,-500.0,0.00042267,120]
[421802708,1778175066000,-524.18805274,0.00042267,120]
[421802710,1778175066000,-500.0,0.00042267,120]
[421802714,1778175066000,-646.86271779,0.00042267,6]
[421802713,1778175066000,-500.0,0.00042267,120]
[421802712,1778175066000,-500.0,0.00042267,120]
[421802711,1778175066000,-500.0,0.00042267,120]
[421802703,1778175066000,-500.0,0.00042267,120]
[421802715,1778175066000,-500.0,0.00042267,120]
[421802721,1778175066000,-513.23077429,0.00042267,120]
[421802719,1778175066000,-521.3273127,0.00042267,120]
[421802717,1778175066000,-488.84334055,0.00042267,120]
[421802718,1778175066000,-500.0,0.00042267,120]
[421802723,1778175066000,-542.87336992,0.00042267,120]
[421802722,1778175066000,-500.0,0.00042267,120]
[421802724,1778175066000,-500.0,0.00042267,120]
[421802725,1778175066000,-418.45381778,0.00042267,120]
[421802726,1778175066000,-500.0,0.00042267,120]
[421802678,1778175066000,-946.4,0.00042267,120]
[421802716,1778175066000,-500.0,0.00042267,120]
[421802704,1778175066000,-500.0,0.00042267,120]
[421802720,1778175066000,-500.0,0.00042267,120]
[421802707,1778175066000,-500.0,0.00042267,120]
[421802682,1778175066000,-946.4,0.00042267,120]
[421802701,1778175066000,-500.0,0.00042267,120]
[421802676,1778175066000,-946.4,0.00042267,120]
[421802677,1778175066000,-946.4,0.00042267,120]
[421802686,1778175066000,-946.4,0.00042267,120]
[421802680,1778175066000,-946.4,0.00042267,120]
[421802685,1778175066000,-500.0,0.00042267,120]
[421802684,1778175066000,-946.4,0.00042267,120]
[421802687,1778175066000,-522.45498102,0.00042267,120]
[421802691,1778175066000,-243.73693012,0.00042267,120]
[421802690,1778175066000,-500.0,0.00042267,120]
[421802681,1778175066000,-946.4,0.00042267,120]
[421802694,1778175066000,-500.0,0.00042267,120]
[421802688,1778175066000,-946.4,0.00042267,120]
[421802689,1778175066000,-946.43738493,0.00042267,120]
[421802696,1778175066000,-500.0,0.00042267,120]
[421802697,1778175066000,-2057.24217394,0.00042267,5]
[421802692,1778175066000,-500.0,0.00042267,120]
[421802693,1778175066000,-500.0,0.00042267,120]
[421802695,1778175066000,-500.0,0.00042267,120]
[421802698,1778175066000,-500.0,0.00042267,120]
[421802699,1778175066000,-500.0,0.00042267,120]
[421802705,1778175066000,-500.0,0.00042267,120]
[421802766,1778175067000,-516.1260808,0.00042267,120]
[421802763,1778175067000,-539.07480689,0.00042267,120]
[421802764,1778175067000,-500.0,0.00042267,120]
[421802762,1778175067000,-500.0,0.00042267,120]
[421802761,1778175067000,-500.0,0.00042267,120]
[421802768,1778175067000,-768.83,0.00042267,120]
[421802758,1778175067000,-500.0,0.00042267,120]
[421802760,1778175067000,-500.0,0.00042267,120]
[421802769,1778175067000,-499.9062012,0.00042267,120]
[421802765,1778175067000,-500.0,0.00042267,120]
[421802767,1778175067000,-500.0,0.00042267,120]
[421802780,1778175067000,-768.83,0.00042267,120]
[421802783,1778175067000,-511.17014157,0.00042267,120]
[421802770,1778175067000,-768.83,0.00042267,120]
[421802779,1778175067000,-768.83,0.00042267,120]
[421802778,1778175067000,-768.83,0.00042267,120]
[421802775,1778175067000,-768.83,0.00042267,120]
[421802771,1778175067000,-768.83,0.00042267,120]
[421802776,1778175067000,-768.83,0.00042267,120]
[421802773,1778175067000,-768.83,0.00042267,120]
[421802774,1778175067000,-768.83,0.00042267,120]
[421802772,1778175067000,-768.83,0.00042267,120]
[421802777,1778175067000,-768.83,0.00042267,120]
[421802794,1778175067000,-768.83,0.00042267,120]
[421802791,1778175067000,-768.83,0.00042267,120]
[421802759,1778175067000,-500.0,0.00042267,120]
[421802781,1778175067000,-500.0,0.00042267,120]
[421802749,1778175067000,-500.0,0.00042267,120]
[421802728,1778175067000,-500.0,0.00042267,120]
[421802753,1778175067000,-240.41508394,0.00042267,120]
[421802731,1778175067000,-500.0,0.00042267,120]
[421802729,1778175067000,-516.18070324,0.00042267,120]
[421802732,1778175067000,-559.66846301,0.00042267,120]
[421802730,1778175067000,-165.33142454,0.00042267,120]
[421802792,1778175067000,-768.83,0.00042267,120]
[421802733,1778175067000,-500.0,0.00042267,120]
[421802744,1778175067000,-517.75350773,0.00042267,120]
[421802736,1778175067000,-536.76400635,0.00042267,120]
[421802734,1778175067000,-523.66810715,0.00042267,120]
[421802735,1778175067000,-500.0,0.00042267,120]
[421802739,1778175067000,-500.0,0.00042267,120]
[421802737,1778175067000,-500.0,0.00042267,120]
[421802750,1778175067000,-526.29166569,0.00042267,120]
[421802740,1778175067000,-500.0,0.00042267,120]
[421802738,1778175067000,-500.0,0.00042267,120]
[421802741,1778175067000,-500.0,0.00042267,120]
[421802743,1778175067000,-641.56796801,0.00042267,120]
[421802745,1778175067000,-500.0,0.00042267,120]
[421802746,1778175067000,-500.0,0.00042267,120]
[421802755,1778175067000,-500.0,0.00042267,120]
[421802757,1778175067000,-518.46579279,0.00042267,120]
[421802752,1778175067000,-500.0,0.00042267,120]
[421802754,1778175067000,-500.0,0.00042267,120]
[421802756,1778175067000,-500.0,0.00042267,120]
[421802748,1778175067000,-500.0,0.00042267,120]
[421802751,1778175067000,-534.39031015,0.00042267,120]
[421802742,1778175067000,-500.0,0.00042267,120]
[421802793,1778175067000,-768.83,0.00042267,120]
[421802747,1778175067000,-546.07944433,0.00042267,120]
[421802785,1778175067000,-768.83,0.00042267,120]
[421802823,1778175067000,-500.0,0.00042267,120]
[421802821,1778175067000,-536.0865643,0.00042267,120]
[421802819,1778175067000,-500.0,0.00042267,120]
[421802820,1778175067000,-500.0,0.00042267,120]
[421802829,1778175067000,-515.45517724,0.00042267,120]
[421802827,1778175067000,-500.0,0.00042267,120]
[421802826,1778175067000,-500.0,0.00042267,120]
[421802828,1778175067000,-557.19948283,0.00042267,120]
[421802825,1778175067000,-626.66394432,0.00042267,120]
[421802824,1778175067000,-500.0,0.00042267,120]
[421802840,1778175067000,-535.95645913,0.00042267,120]
[421802841,1778175067000,-1445.88,0.00042267,120]
[421802839,1778175067000,-1445.88,0.00042267,120]
[421802831,1778175067000,-500.0,0.00042267,120]
[421802832,1778175067000,-1445.88,0.00042267,120]
[421802830,1778175067000,-500.0,0.00042267,120]
[421802837,1778175067000,-1445.88,0.00042267,120]
[421802834,1778175067000,-500.0,0.00042267,120]
[421802835,1778175067000,-1445.88,0.00042267,120]
[421802833,1778175067000,-518.062494,0.00042267,120]
[421802836,1778175067000,-500.0,0.00042267,120]
[421802845,1778175067000,-1445.88,0.00042267,120]
[421802844,1778175067000,-1445.88,0.00042267,120]
[421802842,1778175067000,-1445.88,0.00042267,120]
[421802846,1778175067000,-1445.88,0.00042267,120]
[421802843,1778175067000,-1445.88,0.00042267,120]
[421802782,1778175067000,-768.83,0.00042267,120]
[421802822,1778175067000,-500.0,0.00042267,120]
[421802815,1778175067000,-500.0,0.00042267,120]
[421802838,1778175067000,-500.0,0.00042267,120]
[421802810,1778175067000,-629.42982369,0.00042267,120]
[421802812,1778175067000,-500.0,0.00042267,120]
[421802784,1778175067000,-768.83,0.00042267,120]
[421802786,1778175067000,-768.83,0.00042267,120]
[421802790,1778175067000,-521.97862802,0.00042267,120]
[421802789,1778175067000,-768.83,0.00042267,120]
[421802788,1778175067000,-500.0,0.00042267,120]
[421802795,1778175067000,-500.0,0.00042267,120]
[421802797,1778175067000,-1013.24189589,0.00042267,5]
[421802796,1778175067000,-768.83,0.00042267,120]
[421802804,1778175067000,-500.0,0.00042267,120]
[421802802,1778175067000,-500.0,0.00042267,120]
[421802805,1778175067000,-643.59562163,0.00042267,120]
[421802798,1778175067000,-769.0436903,0.00042267,120]
[421802787,1778175067000,-768.83,0.00042267,120]
[421802799,1778175067000,-500.0,0.00042267,120]
[421802813,1778175067000,-500.0,0.00042267,120]
[421802803,1778175067000,-500.0,0.00042267,120]
[421802808,1778175067000,-15858.24112425,0.00042267,3]
[421802814,1778175067000,-594.84833747,0.00042267,120]
[421802809,1778175067000,-500.0,0.00042267,120]
[421802816,1778175067000,-500.0,0.00042267,120]
[421802811,1778175067000,-500.0,0.00042267,120]
[421802807,1778175067000,-351.57332756,0.00042267,120]
[421802806,1778175067000,-500.0,0.00042267,120]
[421802818,1778175067000,-500.0,0.00042267,120]
[421802801,1778175067000,-500.0,0.00042267,120]
[421802800,1778175067000,-430.48205353,0.00042267,120]
[421802817,1778175067000,-500.0,0.00042267,120]
[421802869,1778175068000,-500.0,0.00042267,120]
[421802871,1778175068000,-500.0,0.00042267,5]
[421802870,1778175068000,-500.0,0.00042267,120]
[421802873,1778175068000,-262.50325378,0.00042267,120]
[421802868,1778175068000,-589.37040615,0.00042267,120]
[421802872,1778175068000,-500.0,0.00042267,120]
[421802874,1778175068000,-500.0,0.00042267,120]
[421802875,1778175068000,-500.0,0.00042267,120]
[421802877,1778175068000,-500.0,0.00042267,120]
[421802879,1778175068000,-500.0,0.00042267,120]
[421802878,1778175068000,-636.97562163,0.00042267,120]
[421802880,1778175068000,-500.0,0.00042267,120]
[421802881,1778175068000,-555.52437233,0.00042267,120]
[421802883,1778175068000,-500.0,0.00042267,120]
[421802882,1778175068000,-520.62683623,0.00042267,120]
[421802884,1778175068000,-624.57889548,0.00042267,120]
[421802890,1778175068000,-500.0,0.00042267,120]
[421802876,1778175068000,-500.0,0.00042267,120]
[421802867,1778175068000,-500.0,0.00042267,120]
[421802850,1778175068000,-1445.88,0.00042267,120]
[421802864,1778175068000,-334.26841728,0.00042267,120]
[421802885,1778175068000,-500.0,0.00042267,120]
[421802852,1778175068000,-1445.88,0.00042267,120]
[421802853,1778175068000,-1445.88,0.00042267,120]
[421802847,1778175068000,-1445.88,0.00042267,120]
[421802849,1778175068000,-1445.88,0.00042267,120]
[421802848,1778175068000,-1445.88,0.00042267,120]
[421802851,1778175068000,-1445.88,0.00042267,120]
[421802865,1778175068000,-500.0,0.00042267,120]
[421802863,1778175068000,-318.0,0.00042267,120]
[421802866,1778175068000,-600.0,0.00042267,5]
[421802859,1778175068000,-1445.88,0.00042267,120]
[421802861,1778175068000,-500.0,0.00042267,120]
[421802854,1778175068000,-1445.88,0.00042267,120]
[421802858,1778175068000,-1445.88,0.00042267,120]
[421802857,1778175068000,-1445.88,0.00042267,120]
[421802860,1778175068000,-1446.05981572,0.00042267,120]
[421802856,1778175068000,-1445.88,0.00042267,120]
[421802862,1778175068000,-500.0,0.00042267,120]
[421802855,1778175068000,-1445.88,0.00042267,120]
[421802886,1778175068000,-515.29758686,0.00042267,120]
[421802897,1778175068000,-376.21213362,0.00042267,120]
[421802887,1778175068000,-500.0,0.00042267,120]
[421802917,1778175068000,-500.0,0.00042267,120]
[421802914,1778175068000,-649.11823687,0.00042267,120]
[421802915,1778175068000,-500.0,0.00042267,120]
[421802913,1778175068000,-500.0,0.00042267,120]
[421802919,1778175068000,-500.0,0.00042267,120]
[421802918,1778175068000,-281.87187402,0.00042267,120]
[421802916,1778175068000,-500.0,0.00042267,120]
[421802921,1778175068000,-500.0,0.00042267,120]
[421802909,1778175068000,-500.0,0.00042267,120]
[421802920,1778175068000,-500.0,0.00042267,120]
[421802923,1778175068000,-500.0,0.00042267,120]
[421802926,1778175068000,-610.81226777,0.00042267,120]
[421802925,1778175068000,-500.0,0.00042267,120]
[421802924,1778175068000,-254.62720682,0.00042267,120]
[421802928,1778175068000,-500.0,0.00042267,120]
[421802930,1778175068000,-500.0,0.00042267,120]
[421802929,1778175068000,-500.0,0.00042267,120]
[421802889,1778175068000,-163.49048377,0.00042267,120]
[421802922,1778175068000,-500.0,0.00042267,120]
[421802908,1778175068000,-522.89491005,0.00042267,120]
[421802927,1778175068000,-270.34918973,0.00042267,120]
[421802905,1778175068000,-500.0,0.00042267,120]
[421802888,1778175068000,-500.0,0.00042267,120]
[421802906,1778175068000,-538.98974534,0.00042267,120]
[421802892,1778175068000,-373.21675277,0.00042267,120]
[421802891,1778175068000,-500.0,0.00042267,120]
[421802894,1778175068000,-500.0,0.00042267,120]
[421802895,1778175068000,-500.0,0.00042267,120]
[421802896,1778175068000,-500.0,0.00042267,120]
[421802899,1778175068000,-500.0,0.00042267,120]
[421802902,1778175068000,-500.0,0.00042267,120]
[421802893,1778175068000,-588.24568161,0.00042267,120]
[421802898,1778175068000,-526.37448674,0.00042267,120]
[421802900,1778175068000,-514.89570053,0.00042267,120]
[421802901,1778175068000,-500.0,0.00042267,120]
[421802903,1778175068000,-457.54453895,0.00042267,120]
[421802910,1778175068000,-521.11496891,0.00042267,120]
[421802912,1778175068000,-500.0,0.00042267,120]
[421802904,1778175068000,-550.76569784,0.00042267,120]
[421802907,1778175068000,-500.0,0.00042267,120]
[421802911,1778175068000,-500.0,0.00042267,120]
[421802955,1778175069000,-1146.15,0.00042267,120]
[421802962,1778175069000,-1146.15,0.00042267,120]
[421802959,1778175069000,-530.01938948,0.00042267,120]
[421802958,1778175069000,-500.0,0.00042267,120]
[421802957,1778175069000,-1146.15,0.00042267,120]
[421802960,1778175069000,-1146.15,0.00042267,120]
[421802968,1778175069000,-1146.15,0.00042267,120]
[421802956,1778175069000,-403.16316498,0.00042267,120]
[421802961,1778175069000,-1146.15,0.00042267,120]
[421802973,1778175069000,-1146.15,0.00042267,120]
[421802963,1778175069000,-500.0,0.00042267,120]
[421802964,1778175069000,-1146.15,0.00042267,120]
[421802965,1778175069000,-592.74226616,0.00042267,120]
[421802966,1778175069000,-1146.15,0.00042267,120]
[421802967,1778175069000,-1146.15,0.00042267,120]
[421802970,1778175069000,-1146.15,0.00042267,120]
[421802972,1778175069000,-1146.15,0.00042267,120]
[421802971,1778175069000,-1146.15,0.00042267,120]
[421802954,1778175069000,-500.0,0.00042267,120]
[421802969,1778175069000,-1146.15,0.00042267,120]
[421802953,1778175069000,-1146.15,0.00042267,120]
[421802936,1778175069000,-500.0,0.00042267,120]
[421802950,1778175069000,-500.0,0.00042267,120]
[421802976,1778175069000,-500.0,0.00042267,120]
[421802931,1778175069000,-500.0,0.00042267,120]
[421802932,1778175069000,-509.39443583,0.00042267,120]